fUSD/lending_fUSD_20251006
["ID","MTS","AMOUNT","RATE_DAILY","PERIOD"]
[389657486,1759770639494,-200.0,0.00024715,2]
[389657487,1759770639503,-3032.5677221,0.00024742,2]
[389657488,1759770639512,-500.0,0.00024773,2]
[389657489,1759770639522,-500.0,0.00024773,2]
[389657490,1759770639531,-500.0,0.00024773,2]
[389657491,1759770639540,-417.42995529,0.00024773,2]
[389657492,1759770639549,-117916.940125,0.000248,3]
[389657493,1759770639558,-162.69324746,0.0002483,2]
[389657494,1759770639567,-600.0,0.0002485,2]
[389657495,1759770639576,-154.44,0.00024928,2]
[389657496,1759770639585,-450.0,0.00025,2]
[389657497,1759770639594,-1184.74,0.00025,2]
[389657498,1759770639604,-1355.86869584,0.00025154,2]
[389657499,1759770639613,-1000.0,0.00025321,2]
[389657500,1759770639623,-1000.0,0.00025321,2]
[389657501,1759770639633,-1000.0,0.00025321,2]
[389657502,1759770639643,-600.0,0.00025398,2]
[389657503,1759770639652,-1184.74,0.000255,2]
[389657504,1759770639661,-161.00328076,0.00025845,2]
[389657505,1759770639671,-154.44,0.00025904,7]
[389657506,1759770639679,-600.0,0.00025946,2]
[389657507,1759770639689,-3032.5677221,0.00025983,2]
[389657508,1759770639698,-1184.74,0.00026,30]
[389657509,1759770639708,-614.27951821,0.00026022,120]
[389657510,1759770639717,-1355.86869584,0.00026064,2]
[389657511,1759770639727,-2000.0,0.000264,2]
[389657512,1759770639736,-600.0,0.00026494,2]
[389657513,1759770639746,-1184.74,0.000265,30]
[389657514,1759770639755,-150.0,0.00026803,4]
[389657515,1759770639765,-150.0,0.00026803,4]
[389657516,1759770639775,-150.0,0.00026803,4]
[389657517,1759770639784,-154.44,0.00026879,7]
[389657518,1759770639793,-1355.86869584,0.00026975,2]
[389657519,1759770639803,-164.0,0.00027,7]
[389657520,1759770639812,-150.0,0.00027,2]
[389657521,1759770639821,-164.0,0.00027,7]
[389657522,1759770639832,-500.0,0.00027,2]
[389657523,1759770639841,-1184.74,0.00027,30]
[389657524,1759770639851,-600.0,0.00027042,2]
[389657526,1759770639860,-264.04,0.00027123,4]
[389657528,1759770639869,-161.00328076,0.00027132,2]
[389657530,1759770639878,-3032.5677221,0.00027224,2]
[389657531,1759770639888,-5000.0,0.00027297,2]
[389657532,1759770639897,-500.0,0.00027397,2]
[389657533,1759770639907,-518.10644694,0.00027397,2]
[389657534,1759770639916,-1534.21,0.00027397,2]
[389657535,1759770639925,-474.03947851,0.00027397,2]
[389657536,1759770639934,-150.0,0.00027416,2]
[389657537,1759770639944,-1184.74,0.000275,30]
[389657538,1759770639954,-2075.34736552,0.00027541,2]
[389657540,1759770639964,-600.0,0.0002759,2]
[389657541,1759770639973,-2434.04937931,0.00027666,2]
[389657542,1759770639982,-2792.7513931,0.00027791,2]
[389657543,1759770639992,-159.0,0.000278,2]
[389657544,1759770640001,-154.44,0.00027855,7]
[389657545,1759770640011,-1355.86869584,0.00027886,2]
[389657546,1759770640021,-3151.4534069,0.00027916,2]
[389657547,1759770640030,-370.68887098,0.00028,10]
[389657549,1759770640040,-47329.87530771,0.00028,25]
[389657550,1759770640049,-1184.74,0.00028,30]
[389657551,1759770640059,-3510.15542069,0.00028041,2]
[389657552,1759770640068,-600.0,0.00028138,2]
[389657553,1759770640077,-3868.85743448,0.00028166,2]
[389657554,1759770640086,-4227.55944827,0.00028291,2]
[389657555,1759770640096,-150.0,0.00028292,7]
[389657556,1759770640105,-4586.26146207,0.00028416,2]
[389657557,1759770640114,-161.00328076,0.0002842,2]
[389657558,1759770640122,-3032.5677221,0.00028466,2]
[389657559,1759770640132,-39305.6467083,0.0002847,3]
[389657560,1759770640142,-152.85,0.00028485,2]
[389657561,1759770640152,-1184.74,0.000285,30]
[389657562,1759770640162,-3846.06573061,0.00028521,3]
[389657563,1759770640172,-4944.96347586,0.00028541,2]
[389657564,1759770640183,-5303.66548965,0.00028665,2]
[389657565,1759770640193,-600.0,0.00028686,2]
[389657566,1759770640202,-164.0,0.00028767,14]
[389657567,1759770640211,-3846.06573061,0.00028771,3]
[389657568,1759770640220,-5662.36750345,0.0002879,2]
[389657569,1759770640229,-1355.86869584,0.00028796,2]
[389657570,1759770640238,-5787.48471224,0.00028807,2]
[389657571,1759770640247,-154.44,0.00028831,30]
[389657572,1759770640256,-6021.06951724,0.00028915,2]
[389657573,1759770640266,-1000.0,0.00028967,2]
[389657574,1759770640275,-156.0,0.0002898,2]
[389657575,1759770640284,-550.0,0.00029,2]
[389657576,1759770640293,-1184.74,0.00029,30]
[389657577,1759770640302,-393.17872503,0.00029008,2]
[389657578,1759770640312,-1000.0,0.00029013,4]
[389657579,1759770640321,-3846.06573061,0.00029021,3]
[389657580,1759770640330,-6379.77153103,0.0002904,2]
[389657581,1759770640339,-1444.0,0.00029041,120]
[389657582,1759770640348,-562.57436116,0.00029079,2]
[389657583,1759770640357,-1000.0,0.00029128,2]
[389657584,1759770640367,-39305.6467083,0.00029146,3]
[389657585,1759770640376,-3846.06573061,0.00029146,3]
[389657586,1759770640385,-1000.0,0.00029161,2]
[389657587,1759770640394,-6738.47354482,0.00029165,2]
[389657588,1759770640403,-1425.0,0.00029217,2]
[389657589,1759770640411,-280.05235881,0.00029218,2]
[389657590,1759770640420,-600.0,0.00029234,2]
[389657591,1759770640429,-1000.0,0.0002926,4]
[389657592,1759770640438,-3846.06573061,0.00029271,3]
[389657593,1759770640448,-7097.17555862,0.0002929,2]
[389657594,1759770640457,-150.0,0.00029382,30]
[389657596,1759770640466,-7455.87757241,0.00029415,2]
[389657598,1759770640474,-229.62400354,0.00029441,2]
[389657600,1759770640484,-150.0,0.00029494,2]
[389657602,1759770640493,-1000.0,0.00029507,4]
[389657604,1759770640502,-39305.6467083,0.0002951,3]
[389657606,1759770640510,-23076.3943837,0.0002951,3]
[389657608,1759770640519,-39305.6467083,0.0002952,3]
[389657610,1759770640528,-26922.4601143,0.0002952,3]
[389657611,1759770640537,-60872.00423708,0.0002953,2]
[389657612,1759770640546,-21977.91000452,0.0002953,2]
[389657613,1759770640555,-7814.5795862,0.0002954,2]
[389657614,1759770640564,-3846.06573061,0.0002958,3]
[389657615,1759770640573,-11538.1971918,0.00029586,3]
[389657616,1759770640582,-150.0,0.0002959,2]
[389657617,1759770640590,-500.0,0.0002959,2]
[389657618,1759770640600,-150.0,0.0002959,2]
[389657619,1759770640609,-150.0,0.0002959,2]
[389657620,1759770640618,-150.0,0.0002959,2]
[389657621,1759770640627,-150.0,0.0002959,2]
[389657622,1759770640636,-500.0,0.0002959,2]
[389657623,1759770640645,-500.0,0.0002959,2]
[389657624,1759770640655,-150.0,0.0002959,2]
[389657625,1759770640664,-150.0,0.0002959,2]
[389657626,1759770640673,-150.0,0.0002959,2]
[389657627,1759770640682,-150.0,0.0002959,2]
[389657628,1759770640692,-3846.06573061,0.00029597,3]
[389657629,1759770640701,-8198.00295989,0.00029607,7]
[389657630,1759770640848,-4900.24259196,0.00029607,7]
[389657631,1759770640858,-2348.20742286,0.00029627,3]
[389657632,1759770640868,-5200.0,0.00029627,3]
[389657633,1759770640879,-731.13012112,0.00029627,3]
[389657634,1759770640890,-12544.0,0.00029627,3]
[389657635,1759770640906,-18482.30916432,0.00029627,3]
[389657636,1759770640916,-2813.31781209,0.00029627,3]
[389657637,1759770640927,-4878.81364913,0.00029627,3]
[389657638,1759770640936,-3846.06573061,0.00029637,3]
[389657639,1759770640946,-535.25358978,0.00029647,2]
[389657640,1759770640955,-108.06703048,0.00029665,2]
[389657641,1759770640966,-6272.0,0.00029665,2]
[389657642,1759770640981,-1793.21456952,0.00029665,2]
[389657643,1759770640990,-3846.06573061,0.00029669,3]
[389657644,1759770641000,-2000.0,0.00029679,2]
[389657645,1759770641009,-11206.31060931,0.00029697,3]
[389657646,1759770641090,-1202.799999,0.00016357,2]
[389657647,1759770641102,-605.05660918,0.00016357,2]
[389657648,1759770641113,-779.91742984,0.00016357,2]
[389657649,1759770641124,-471.28246185,0.00016357,2]
[389657650,1759770641134,-1149.61289584,0.00016378,2]
[389657651,1759770641146,-1909.44360403,0.00016378,2]
[389657652,1759770641156,-2543.0,0.00017429,2]
[389657653,1759770641165,-2263.04917117,0.00020429,2]
[389657654,1759770641179,-279.95082883,0.00020429,2]
[389657655,1759770641191,-975.68917117,0.00023429,2]
[389657656,1759770641203,-566.00930675,0.00023429,2]
[389657657,1759770641218,-1001.30152208,0.00023429,2]
[389657658,1759770641228,-331.88658249,0.00029697,3]
[389657659,1759770641238,-894.02207254,0.00029697,2]
[389657660,1759770641247,-225.09989642,0.00029707,2]
[389657661,1759770641257,-161.00328076,0.00029707,15]
[389657662,1759770641266,-375.94756248,0.00029707,2]
[389657663,1759770641276,-1537.16960334,0.00029707,2]
[389657664,1759770641285,-817.88511945,0.00029707,2]
[389657665,1759770641295,-343.13558978,0.00029707,2]
[389657666,1759770641304,-1355.86869584,0.00029707,2]
[389657667,1759770641314,-3032.5677221,0.00029707,2]
[389657668,1759770641323,-150.5,0.00029717,2]
[389657669,1759770641333,-150.5,0.00029717,2]
[389657670,1759770641342,-5707.99835582,0.00029727,3]
[389657671,1759770641355,-23517.57915,0.00029727,3]
[389657672,1759770641371,-1539.67040378,0.00026429,2]
[389657673,1759770641382,-1003.32959622,0.00026429,2]
[389657674,1759770641391,-3843.43237001,0.00029727,3]
[389657675,1759770641402,-601.50114901,0.00029727,3]
[389657676,1759770641413,-501.97000001,0.00029727,3]
[389657677,1759770641423,-430.53918955,0.00029727,3]
[389657678,1759770641435,-1695.32967665,0.00029727,3]
[389657679,1759770641446,-1075.70213049,0.00029727,3]
[389657680,1759770641458,-1931.59468676,0.00029727,3]
[389657681,1759770641467,-2135.44435269,0.00029727,3]
[389657682,1759770641477,-1417.5,0.00029727,3]
[389657683,1759770641488,-293.12137792,0.00029727,3]
[389657684,1759770641498,-39305.6467083,0.00029727,3]
[389657685,1759770641507,-8485.23191379,0.00029727,3]
[389657692,1759770643121,-2535.5,0.00029429,2]
[389657693,1759770643131,-1117.100003,0.00029727,3]
[389657695,1759770643178,-3763.5,0.00029727,3]
[389657696,1759770643232,-28940.89111991,0.00029727,3]
[389657697,1759770643242,-918.49601416,0.00029728,2]
[389657698,1759770643252,-36798.26196866,0.00029737,3]
[389657699,1759770643429,-2507.38473964,0.00029737,3]
[389657700,1759770643443,-11538.1971918,0.00029737,3]
[389657701,1759770643453,-150.5,0.00029737,2]
[389657702,1759770643463,-151.0,0.00029747,7]
[389657703,1759770643473,-151.0,0.00029747,7]
[389657704,1759770643483,-151.0,0.00029747,7]
[389657705,1759770643493,-151.0,0.00029747,7]
[389657706,1759770643503,-151.0,0.00029747,7]
[389657707,1759770643513,-268.89028,0.00029747,7]
[389657708,1759770643523,-151.0,0.00029747,7]
[389657709,1759770643533,-151.0,0.00029747,7]
[389657710,1759770643543,-151.0,0.00029747,7]
[389657711,1759770643553,-151.0,0.00029747,7]
[389657712,1759770643562,-151.0,0.00029747,7]
[389657713,1759770643572,-151.0,0.00029747,7]
[389657714,1759770643581,-151.0,0.00029747,7]
[389657715,1759770643590,-151.0,0.00029747,7]
[389657716,1759770643600,-151.0,0.00029747,7]
[389657717,1759770643609,-151.0,0.00029747,7]
[389657718,1759770643620,-151.0,0.00029747,7]
[389657719,1759770643630,-151.0,0.00029747,7]
[389657720,1759770643642,-151.0,0.00029747,7]
[389657721,1759770643653,-151.0,0.00029747,7]
[389657722,1759770643662,-151.0,0.00029747,7]
[389657723,1759770643672,-151.0,0.00029747,7]
[389657724,1759770643681,-151.0,0.00029747,7]
[389657725,1759770643692,-151.0,0.00029747,7]
[389657726,1759770643701,-151.0,0.00029747,7]
[389657727,1759770643711,-193.702985,0.00029747,7]
[389657728,1759770643720,-151.0,0.00029747,7]
[389657729,1759770643729,-151.0,0.00029747,7]
[389657730,1759770643738,-151.0,0.00029747,7]
[389657731,1759770643747,-151.0,0.00029747,7]
[389657732,1759770643756,-151.0,0.00029747,7]
[389657733,1759770643765,-151.0,0.00029747,7]
[389657734,1759770643774,-151.0,0.00029747,7]
[389657735,1759770643783,-261.818863,0.00029747,7]
[389657736,1759770643792,-200.926597,0.00029747,7]
[389657737,1759770643801,-151.0,0.00029747,7]
[389657738,1759770643812,-151.0,0.00029747,7]
[389657739,1759770643821,-151.0,0.00029747,7]
[389657740,1759770643830,-153.835409,0.00029747,7]
[389657741,1759770643839,-151.0,0.00029747,7]
[389657742,1759770643848,-151.0,0.00029747,7]
[389657743,1759770643857,-151.0,0.00029747,7]
[389657744,1759770643866,-151.0,0.00029747,7]
[389657745,1759770643875,-151.0,0.00029747,7]
[389657746,1759770643885,-151.0,0.00029747,7]
[389657747,1759770643895,-151.0,0.00029747,7]
[389657748,1759770643906,-225.421926,0.00029747,7]
[389657749,1759770643915,-151.0,0.00029747,7]
[389657750,1759770643925,-151.0,0.00029747,7]
[389657751,1759770643933,-151.0,0.00029747,7]
[389657752,1759770643944,-151.0,0.00029747,7]
[389657753,1759770643953,-151.0,0.00029747,7]
[389657754,1759770643962,-151.0,0.00029747,7]
[389657755,1759770643972,-151.0,0.00029747,7]
[389657756,1759770643981,-151.0,0.00029747,7]
[389657757,1759770643990,-151.0,0.00029747,7]
[389657758,1759770643999,-151.0,0.00029747,7]
[389657759,1759770644008,-151.0,0.00029747,7]
[389657760,1759770644017,-151.0,0.00029747,7]
[389657761,1759770644027,-151.0,0.00029747,7]
[389657762,1759770644035,-151.0,0.00029747,7]
[389657763,1759770644044,-151.0,0.00029747,7]
[389657764,1759770644054,-255.551385,0.00029747,7]
[389657765,1759770644063,-151.0,0.00029747,7]
[389657766,1759770644072,-151.0,0.00029747,7]
[389657767,1759770644081,-151.0,0.00029747,7]
[389657768,1759770644090,-151.0,0.00029747,7]
[389657769,1759770644100,-151.0,0.00029747,7]
[389657770,1759770644109,-151.0,0.00029747,7]
[389657771,1759770644118,-68.11027176,0.00029747,7]
[389657772,1759770644163,-82.88972824,0.00029747,7]
[389657773,1759770644172,-151.0,0.00029747,7]
[389657774,1759770644182,-151.0,0.00029747,7]
[389657775,1759770644192,-151.0,0.00029747,7]
[389657776,1759770644206,-152.35208,0.00029747,7]
[389657777,1759770644215,-155.349565,0.00029747,7]
[389657778,1759770644224,-151.0,0.00029747,7]
[389657779,1759770644234,-190.945339,0.00029747,7]
[389657780,1759770644245,-151.0,0.00029747,7]
[389657781,1759770644254,-151.0,0.00029747,7]
[389657782,1759770644263,-151.0,0.00029747,7]
[389657783,1759770644272,-151.0,0.00029747,7]
[389657784,1759770644282,-151.0,0.00029747,7]
[389657785,1759770644292,-272.90405,0.00029747,7]
[389657786,1759770644301,-272.90405,0.00029747,7]
[389657787,1759770644311,-272.90405,0.00029747,7]
[389657788,1759770644320,-272.90405,0.00029747,7]
[389657789,1759770644330,-272.90405,0.00029747,7]
[389657790,1759770644338,-272.90405,0.00029747,7]
[389657791,1759770644347,-272.90405,0.00029747,7]
[389657792,1759770644356,-272.90405,0.00029747,7]
[389657793,1759770644367,-272.90405,0.00029747,7]
[389657794,1759770644376,-151.0,0.00029747,7]
[389657795,1759770644385,-205.173928,0.00029747,7]
[389657796,1759770644394,-151.0,0.00029747,7]
[389657797,1759770644403,-272.90405,0.00029747,7]
[389657798,1759770644412,-151.0,0.00029747,7]
[389657799,1759770644421,-272.90405,0.00029747,7]
[389657800,1759770644432,-272.90405,0.00029747,7]
[389657801,1759770644443,-272.90405,0.00029747,7]
[389657802,1759770644453,-272.90405,0.00029747,7]
[389657803,1759770644462,-272.90405,0.00029747,7]
[389657804,1759770644471,-272.90405,0.00029747,7]
[389657805,1759770644480,-272.90405,0.00029747,7]
[389657806,1759770644490,-272.90405,0.00029747,7]
[389657807,1759770644499,-272.90405,0.00029747,7]
[389657808,1759770644508,-272.90405,0.00029747,7]
[389657809,1759770644518,-151.0,0.00029747,7]
[389657810,1759770644527,-151.0,0.00029747,7]
[389657811,1759770644536,-151.0,0.00029747,7]
[389657812,1759770644545,-151.0,0.00029747,7]
[389657813,1759770644554,-1000.0,0.00029753,4]
[389657814,1759770644563,-1000.0,0.00029763,2]
[389657815,1759770644572,-3846.06573061,0.0002977,3]
[389657816,1759770644582,-39305.6467083,0.0002977,3]
[389657817,1759770644592,-19230.3286531,0.0002977,3]
[389657818,1759770644601,-157222.586833,0.0002978,3]
[389657819,1759770644610,-151.41267066,0.00029781,7]
[389657820,1759770644619,-59458.41305992,0.0002979,3]
[389657821,1759770644628,-8531.98361379,0.0002979,2]
[389657822,1759770644637,-894.02207254,0.00029797,2]
[389657823,1759770644647,-894.02207254,0.00029797,2]
[389657824,1759770644656,-371.4,0.00029797,3]
[389657825,1759770644665,-313204.12542045,0.000298,30]
[389657826,1759770644674,-188.68476908,0.000298,2]
[389657827,1759770644683,-169.1,0.000298,21]
[389657828,1759770644693,-13109.12210942,0.00029806,2]
[389657829,1759770644702,-305497.81619843,0.00029807,30]
[389657830,1759770644714,-719.85021813,0.00029807,30]
[389657831,1759770644726,-43935.65627733,0.00029807,30]
[389657832,1759770644735,-6012.93371198,0.00029807,60]
[389657833,1759770644744,-5022.93764802,0.00029807,7]
[389657834,1759770644753,-851.76824987,0.00029807,120]
[389657835,1759770644762,-225.2954155,0.00029807,30]
[389657836,1759770644771,-487.2035945,0.00029807,7]
[389657837,1759770644780,-1647.06052341,0.00029807,120]
[389657838,1759770644790,-5000.0,0.00029807,30]
[389657839,1759770644799,-5000.0,0.00029807,31]
[389657840,1759770644808,-7615.51832419,0.00029807,60]
[389657841,1759770644817,-3000.0,0.00029807,120]
[389657842,1759770644827,-3576.4275684,0.00029807,60]
[389657843,1759770644836,-105209.0,0.00029807,30]
[389657844,1759770644845,-301271.41536598,0.00029807,30]
[389657845,1759770644854,-28108.13304285,0.00029807,30]
[389657846,1759770644862,-180878.4926039,0.00029807,30]
[389657847,1759770644874,-3040.77514984,0.00029807,30]
[389657848,1759770644883,-29785.40018891,0.00029807,30]
[389657849,1759770644893,-3475.78358383,0.00029807,30]
[389657850,1759770644904,-349.24300055,0.00029807,30]
[389657851,1759770644915,-464.76347741,0.00029807,30]
[389657852,1759770644926,-7648.00611916,0.00029807,30]
[389657859,1759770657192,-135919.89977557,0.00029807,30]
[389657860,1759770657203,-78940.35693345,0.00029807,30]
[389657861,1759770657221,-968995.90126836,0.00029807,30]
[389657862,1759770657232,-1272002.10677094,0.00029807,30]
[389657863,1759770657243,-478.0120005,0.00029807,30]
[389657864,1759770657255,-748.0560267,0.00029807,30]
[389657865,1759770657266,-869.29442392,0.00029807,30]
[389657866,1759770657278,-399.445445,0.00029807,30]
[389657867,1759770657319,-301.18,0.00018745,2]
[389657868,1759770657329,-364.82,0.00029807,30]
[389657869,1759770657341,-562966.1316494,0.00029807,30]
[389657870,1759770657351,-616.41039104,0.00029807,30]
[389657871,1759770657362,-45057.3560579,0.00029807,30]
[389657872,1759770657373,-15681.25,0.00029807,30]
[389657873,1759770657383,-150247.02457379,0.00029807,30]
[389657874,1759770657394,-2338.04995324,0.00029807,30]
[389658021,1759771678448,324.35,0.00012014,2]
[389658037,1759771827924,-177.365388,0.00014924,2]
[389658038,1759771827948,-1200.0,0.00014999,2]
[389658039,1759771827972,-300.0,0.00014999,2]
[389658040,1759771827997,-195.0,0.00015,2]
[389658041,1759771828020,-21976.91978747,0.00015,2]
[389658054,1759771831473,-261.97402562,0.000161,2]
[389658055,1759771831487,-792.96581108,0.000161,2]
[389658056,1759771831529,-427.914013,0.000161,2]
[389658057,1759771831586,-41.61270298,0.000161,2]
[389658058,1759771831595,-558.38729702,0.00016288,2]
[389658060,1759771832789,-1411.29442643,0.00016288,2]
[389658061,1759771832798,-1969.68172345,0.00016301,2]
[389658062,1759771832808,-1969.68172345,0.0001631,2]
[389658063,1759771832817,-3139.29038367,0.0001631,2]
[389658064,1759771832826,-3139.29038367,0.00016314,2]
[389658065,1759771832836,-3139.29038367,0.00016319,2]
[389658066,1759771832845,-3139.29038367,0.00016328,2]
[389658067,1759771832854,-454.01849603,0.00016335,2]
[389658068,1759771832864,-1969.68172345,0.00016337,2]
[389658069,1759771832873,-170.85607359,0.00016338,2]
[389658070,1759771832883,-3139.29038367,0.00016342,2]
[389658071,1759771832893,-427.44508814,0.00016356,2]
[389658072,1759771832902,-1969.68172345,0.00016376,2]
[389658073,1759771832911,-195.0,0.00016416,2]
[389658074,1759771832921,-180.556667,0.00016438,2]
[389658075,1759771832930,-152.342826,0.00016438,2]
[389658076,1759771832940,-302.82,0.00016438,2]
[389658077,1759771832949,-301.68,0.00016438,2]
[389658078,1759771832959,-304.62,0.00016438,2]
[389658079,1759771832968,-304.64,0.00016438,2]
[389658080,1759771832977,-302.33,0.00016439,2]
[389658081,1759771832986,-302.37,0.00016443,2]
[389658082,1759771832996,-302.64,0.00016468,2]
[389658083,1759771833005,-200.0,0.00016487,2]
[389658084,1759771833014,-228.74143972,0.00016487,2]
[389658085,1759771833023,-200.0,0.00016487,2]
[389658086,1759771833033,-500.0,0.00016487,2]
[389658087,1759771833043,-500.0,0.00016487,2]
[389658088,1759771833053,-500.0,0.00016487,2]
[389658089,1759771833062,-306.0,0.00016494,2]
[389658090,1759771833071,-465.0,0.00016495,2]
[389658091,1759771833081,-304.22,0.00016496,2]
[389658092,1759771833090,-300.27,0.00016496,2]
[389658093,1759771833099,-302.33,0.00016496,2]
[389658094,1759771833108,-301.66,0.00016496,2]
[389658095,1759771833117,-304.96,0.00016496,2]
[389658096,1759771833127,-304.54,0.00016496,2]
[389658097,1759771833136,-325.28,0.00016496,2]
[389658098,1759771833150,-303.79,0.00016496,2]
[389658099,1759771833160,-305.72,0.00016497,2]
[389658100,1759771833170,-195.0,0.00016499,2]
[389658101,1759771833179,-1680.0,0.00016499,2]
[389658102,1759771833188,-325.28,0.0001677,2]
[389658103,1759771833198,-200.0,0.00017035,2]
[389658104,1759771833207,-325.28,0.00017044,2]
[389658105,1759771833217,-1000.0,0.00017215,2]
[389658106,1759771833226,-1000.0,0.00017215,2]
[389658107,1759771833236,-1000.0,0.00017215,2]
[389658108,1759771833453,-1000.0,0.00017215,2]
[389658109,1759771833463,-1000.0,0.00017215,2]
[389658110,1759771833472,-1000.0,0.00017215,2]
[389658111,1759771833482,-1000.0,0.00017215,2]
[389658112,1759771833491,-1000.0,0.00017215,2]
[389658113,1759771833500,-325.28,0.00017318,2]
[389658114,1759771833510,-169.0,0.00017389,2]
[389658115,1759771833519,-325.3,0.00017592,2]
[389658116,1759771833529,-171.70131482,0.000177,2]
[389658117,1759771833538,-171.70131481,0.000177,2]
[389658118,1759771833548,-301.21,0.00017842,2]
[389658119,1759771833558,-150.78,0.00017842,2]
[389658120,1759771833567,-305.22,0.00017842,2]
[389658121,1759771833577,-301.35,0.00017842,2]
[389658122,1759771833586,-302.32,0.00017842,2]
[389658123,1759771833595,-302.91,0.00017842,2]
[389658124,1759771833604,-300.13,0.00017842,2]
[389658125,1759771833613,-303.38,0.00017842,2]
[389658126,1759771833623,-304.51,0.00017842,2]
[389658127,1759771833632,-304.57,0.00017842,2]
[389658128,1759771833641,-212.94,0.00017842,2]
[389658129,1759771833650,-159.98,0.00017842,2]
[389658130,1759771833659,-5005.63,0.00017842,2]
[389658131,1759771833668,-550.59,0.00017842,2]
[389658132,1759771833677,-305.21,0.00017843,2]
[389658133,1759771833686,-303.86,0.00017845,2]
[389658134,1759771833695,-305.66,0.00017858,2]
[389658135,1759771833704,-303.09,0.00017923,2]
[389658136,1759771833713,-195.0,0.00017946,2]
[389658137,1759771833722,-300.0,0.00017946,2]
[389658138,1759771833733,-500.0,0.00017946,2]
[389658139,1759771833742,-276.32993464,0.00017946,2]
[389658140,1759771833751,-2000.0,0.00017946,2]
[389658141,1759771833760,-500.0,0.00018017,2]
[389658142,1759771833770,-1185.12003012,0.00018036,2]
[389658143,1759771833780,-1645.0,0.00018149,2]
[389658144,1759771833789,-300.66,0.00018259,2]
[389658145,1759771833798,-713.46,0.00018356,2]
[389658146,1759771833808,-151.56,0.00018415,2]
[389658147,1759771833818,-500.0,0.000186,2]
[389658148,1759771833829,-272.2274134,0.000186,2]
[389658149,1759771833838,-500.0,0.000186,2]
[389658150,1759771833847,-1000.0,0.00018645,2]
[389658151,1759771833856,-594.32060067,0.00018745,2]
[389658152,1759771833865,-187.00053607,0.00018745,2]
[389658153,1759771833875,-214.2,0.000188,2]
[389658154,1759771833884,-1984.3954583,0.00019102,2]
[389658155,1759771833893,-607.59494347,0.00019178,2]
[389658156,1759771833903,-370.68887098,0.00019364,2]
[389658157,1759771833912,-210.34,0.00019549,2]
[389658158,1759771833921,-200.0,0.00019557,2]
[389658159,1759771833930,-1000.0,0.00019598,2]
[389658160,1759771833939,-1000.0,0.00019598,2]
[389658161,1759771833948,-281.66076,0.00019599,2]
[389658162,1759771833958,-234.28179289,0.00019599,2]
[389658163,1759771833966,-280.7479,0.000198,2]
[389658164,1759771833975,-180.556667,0.00019802,2]
[389658165,1759771833986,-152.342826,0.00019802,2]
[389658166,1759771833995,-168.34,0.00019857,2]
[389658167,1759771834004,-1082.18,0.0001999,2]
[389658168,1759771834013,-1696.97645111,0.0002,2]
[389658169,1759771834022,-2500.0,0.0002,3]
[389658170,1759771834032,-5964.95993812,0.0002,2]
[389658171,1759771834041,-52940.52600903,0.0002,2]
[389658172,1759771834054,-66247.15938573,0.0002,2]
[389658173,1759771834063,-1035.83886781,0.000201,2]
[389658174,1759771834072,-1696.97645111,0.000202,2]
[389658175,1759771834081,-933.59944044,0.000204,2]
[389658176,1759771834104,-763.37701067,0.000204,2]
[389658177,1759771834113,-159.22941336,0.000206,2]
[389658178,1759771834142,-865.64473031,0.000206,2]
[389658188,1759771837247,-672.10230744,0.000206,2]
[389658190,1759771837257,-297.16030034,0.000206,2]
[389658191,1759771837267,-187.00053608,0.000206,2]
[389658194,1759771837276,-96.53685614,0.00020631,2]
[389658195,1759771837303,-336.86862778,0.00020631,2]
[389658196,1759771837414,-28.09509146,0.00020631,2]
[389658197,1759771837424,-168.0,0.00020696,2]